Cogmind - Beta 13 @@@ ROGUE MODE // 2024.05.18 @ 22:01:53 Player: Martoko Result: Core destroyed Performance ------------- Evolutions (0) 0 Regions Visited (2) 400 Robots Destroyed (22) 110 Value Destroyed (354) 354 Prototype IDs (2) 40 Alien Tech Used (0) 0 Bonus (0) 0 TOTAL SCORE: 904 Bonus ------- None Cogmind --------- Core Integrity 0/250 Matter 283/300 Energy 131/200 System Corruption 0% Temperature Cool (0) Movement Rolling (110) Location -10/Subcaves Parts ------- > --- POWER (1) -------- Subdweller Power Source > --- PROPULSION (2) --- Aluminum Leg Subdweller Monowheel > --- UTILITY (2) ------ Armor Integrity Analyzer > --- WEAPON (2) ------- (None) > --- INVENTORY (5) ---- Improved Heat Sink Peak State ------------ > --- POWER ------------ Neutrino Core > --- PROPULSION ------- Aluminum Leg Aluminum Leg > --- UTILITY ---------- Scrap Shield > --- WEAPON ----------- Beamcaster Beamcaster > --- INVENTORY -------- Subdweller Power Source Subdweller Power Source Improved Heat Sink Armor Integrity Analyzer Mining Laser [Rating: 23] Favorites ----------- Power Ion Engine Engine Ion Engine Power Core Neutrino Core Propulsion Aluminum Leg Leg Aluminum Leg Wheel Subdweller Monowheel Utility Small Storage Unit Device Improved Terrain Scanner Storage Small Storage Unit Processor Armor Integrity Analyzer Protection Scrap Shield Weapon Beamcaster Energy Gun Beamcaster Ballistic Gun Assault Rifle Special Weapon Mining Laser Build | -11 -10 -10 ------- Run | Yrd Mat Sub Slots Evolved . | . . . Power . | . . . Propulsion . | . . . Utility . | . . . Weapon . | . . . Parts Attached 28 | 8 5 15 Power 4 | 1 . 3 Engine 3 | 1 . 2 Core 1 | . . 1 Reactor . | . . . Propulsion 5 | 2 1 2 Treads . | . . . Leg 4 | 2 1 1 Wheel 1 | . . 1 Hover . | . . . Flight . | . . . Utility 9 | 2 2 5 Device 2 | 1 . 1 Storage 3 | 1 2 . Processor 1 | . . 1 Hackware . | . . . Protection 3 | . . 3 Artifact . | . . . Weapon 10 | 3 2 5 Energy Gun 6 | 2 1 3 Energy Cannon . | . . . Ballistic Gun 2 | 1 . 1 Ballistic Cannon . | . . . Launcher . | . . . Special Weapon 2 | . 1 1 Impact Weapon . | . . . Slashing Weapon . | . . . Piercing Weapon . | . . . Special Melee Weapon . | . . . Unidentified Prototypes . | . . . Parts Lost 10 | . . 10 Power 2 | . . 2 Propulsion 2 | . . 2 Utility 2 | . . 2 Weapon 4 | . . 4 Highest Loss Streak 6 | . . 6 To Critical Strikes 1 | . . 1 Average Slot Usage (%) 88 | . 100 84 Engine 6 | . 14 3 Core 7 | . . 10 Leg 27 | . 28 26 Device 5 | . 14 2 Storage 5 | . 14 2 Protection 7 | . . 10 Energy Gun 17 | . 13 19 Ballistic Gun 8 | . 14 6 Naked Turns . | . . . Heaviest Build 42 | 14 15 42 Greatest Support 20 | 20 20 20 Greatest Overweight (x) 2 | . . 2 Average Overweight (x) . | . . 1 Largest Inventory Capacity 25 | 8 25 8 Average Capacity 6 | 7 8 5 Most Carried 8 | 5 8 8 Average Carried 5 | 3 5 5 Final Capacity 8 | 8 8 5 Final Carried 6 | 5 6 1 Class Distribution -------------------- 52% | Mutant 47% | Scavenger-Mutant Dominant Class ---------------- Mutant | -10/Materials Scavenger-Mutant | -10/Subcaves Resources | -11 -10 -10 ----------- Run | Yrd Mat Sub Matter Collected 597 | 325 122 150 Remotely . | . . . Salvage Created 565 | 171 280 114 Parts 50 | 25 12 13 Haulers Intercepted . | . . . Recyclers Shooed 2 | . 2 . Parts Field Recycled . | . . . Retrieved Matter . | . . . Parts Self-Destructed . | . . . Prevented . | . . . Kills | -11 -10 -10 ------- Run | Yrd Mat Sub Combat Hostiles Destroyed 9 | . 5 4 Melee 1 | . . 1 Guns 8 | . 5 3 Classes Destroyed 7 | 2 4 1 Worker 2 | 2 . . Builder 3 | . 3 . Tunneler 7 | 7 . . Recycler 1 | . 1 . Swarmer 2 | . 2 . Grunt 3 | . 3 . Subdweller 4 | . . 4 Best Kill Streak 6 | 6 4 2 Combat Bots Only 3 | . 3 2 Max Kills in Single Turn 2 | 1 2 1 Gunslinging . | . . . Exploded . | . . . Melee 1 | . . 1 Uniques/NPCs Destroyed . | . . . Combat | -11 -10 -10 -------- Run | Yrd Mat Sub Hostile Shots Fired 108 | . 39 69 Missed 36 | . 11 25 Damage Taken 1459 | 16 304 1139 Core 253 | . 28 225 Absorbed by Shields . | . . . Core Remaining (%) 100 | 100 . . Volleys Fired 68 | 15 34 19 Largest 2 | 2 2 2 Hottest 175 | 60 100 175 Shots Fired 125 | 29 65 31 Gun 120 | 29 62 29 Cannon . | . . . Launcher . | . . . Special 5 | . 3 2 Kinetic 57 | 15 31 11 Thermal 55 | 8 28 19 Explosive . | . . . Electromagnetic 13 | 6 6 1 Robot Hit Streak 14 | 4 14 7 Robot Miss Streak 2 | 2 2 1 Penetration Max . | . . . Secondary Targets . | . . . Shots Hit Robots 80 | 16 47 17 Core Hits 33 | 9 15 9 Critical Kills . | . . . Critical Parts Destroyed . | . . . Critical Strikes 1 | . . 1 Burn 1 | . . 1 Melee Attacks . | . . . Impact . | . . . Slashing . | . . . Piercing . | . . . Sneak Attacks . | . . . Combat Hostiles . | . . . Follow-up Attacks . | . . . Damage Inflicted 1210 | 219 674 317 Guns 1006 | 194 544 268 Cannons . | . . . Explosions 153 | 25 128 . Melee . | . . . Ramming 27 | . 2 25 Kinetic 494 | 87 275 132 Thermal 573 | 81 342 150 Explosive . | . . . Electromagnetic 116 | 51 55 10 Impact . | . . . Slashing . | . . . Piercing . | . . . Highest Corruption . | . . . Average Corruption . | . . . Corruption Purged . | . . . Corruption Blocked . | . . . Overload Shots . | . . . Overflow Damage 5 | . 5 . Projectiles . | . . . Explosions 5 | . 5 . Melee . | . . . Knockbacks 1 | . . 1 Impact 1 | . . 1 Kinetic . | . . . Secondary . | . . . Self-Inflicted Damage 50 | 16 31 3 Shots 2 | 1 1 . Rammed 1 | . . 1 Targets Rammed 10 | . 1 9 Kicked 9 | . 1 8 Crushed . | . . . Highest Temperature 90 | 12 60 90 Average Temperature 27 | 12 21 39 Received Heat Transfer 213 | . 102 111 Siege Activations . | . . . Robots Corrupted . | . . . Combat Hostiles . | . . . Parts Fried . | . . . Impact Corruptions . | . . . Robots Melted . | . . . Combat Hostiles . | . . . Parts Melted 1 | . 1 . Heat Transferred 1096 | 125 625 346 Parts Sabotaged . | . . . Parts Stolen . | . . . Parts Stripped . | . . . Power Chain Reactions 2 | 1 1 . Alert | -11 -10 -10 ------- Run | Yrd Mat Sub Peak Influence 262 | 45 262 . Initial 29 | . 29 . Average 91 | 16 165 . Maximum Alert Level 1 | . 1 . Low Security (%) 71 | 100 42 . Level 1 28 | . 57 . Level 2 . | . . . Level 3 . | . . . Level 4 . | . . . Level 5 . | . . . High Security . | . . . Max Security . | . . . Squads Dispatched 1 | . 1 . Investigation . | . . . Extermination . | . . . Reinforcement 1 | . 1 . Assault . | . . . Garrison . | . . . Intercept . | . . . Searches Triggered . | . . . Construction Impeded . | . . . Haulers Reinforced . | . . . Active Scanning Responses . | . . . Cargo Convoy Interrupts . | . . . Stealth | -11 -10 -10 --------- Run | Yrd Mat Sub Distress Signals 2 | . 2 . Communications Jammed . | . . . Distress Signals . | . . . Times Spotted 24 | . 12 12 Peak Tracking Total 6 | . 6 5 Tactical Retreats 2 | . 2 . Traps | -11 -10 -10 ------- Run | Yrd Mat Sub Traps Triggered 4 | . . 4 Indirectly . | . . . Trap Hack Attempts . | . . . Triggered . | . . . Disarmed . | . . . Reprogrammed . | . . . Reused . | . . . Traps Extracted . | . . . Installed . | . . . Triggered . | . . . Machines | -11 -10 -10 ---------- Run | Yrd Mat Sub Machines Disabled . | . . . Max in Single Turn . | . . . Machines Repaired . | . . . Machines Dismantled . | . . . Machines Sabotaged . | . . . Overloaded Fab Kills . | . . . Hacking | -11 -10 -10 --------- Run | Yrd Mat Sub Machines Accessed 1 | . 1 . Terminals 1 | . 1 . Fabricators . | . . . Repair Stations . | . . . Recycling Units . | . . . Scanalyzers . | . . . Garrison Access . | . . . Total Hacks 5 | . 5 . Successful 4 | . 4 . Failed 1 | . 1 . Catastrophic . | . . . Database Lockouts . | . . . Manual 1 | . 1 . Terminals 5 | . 5 . Fabricators . | . . . Repair Stations . | . . . Recycling Units . | . . . Scanalyzers . | . . . Garrison Access . | . . . Terminal Hacks 4 | . 4 . Record 2 | . 2 . Prototype ID Bank 1 | . 1 . Locate Traps 1 | . 1 . Fabricator Hacks . | . . . Repair Station Hacks . | . . . Recycling Unit Hacks . | . . . Scanalyzer . | . . . Garrison Access Hacks . | . . . Unauthorized Hacks . | . . . Terminals . | . . . Fabricators . | . . . Repair Stations . | . . . Recycling Units . | . . . Scanalyzers . | . . . Garrison Access . | . . . Data Cores Recovered . | . . . Used . | . . . Hacking Detections 1 | . 1 . Full Trace Events . | . . . Feedback Events . | . . . Feedback Blocked . | . . . Robot Schematics Acquired . | . . . Robots Built . | . . . Authchips . | . . . Time . | . . . Total Robot Build Rating . | . . . Part Schematics Acquired . | . . . Parts Built . | . . . Authchips . | . . . Time . | . . . Total Part Build Rating . | . . . Parts Repaired . | . . . Time . | . . . Parts Recycled . | . . . Recycled Matter . | . . . Retrieved Matter . | . . . Retrieved Components . | . . . Parts Scanalyzed . | . . . Part Schematics Acquired . | . . . Parts Damaged . | . . . Bothacking | -11 -10 -10 ------------ Run | Yrd Mat Sub Used RIF Installer . | . . . Robots Hacked . | . . . Non-combat . | . . . Combat . | . . . Robot Hacks Applied . | . . . Relay Couplers Released . | . . . Fabnet Peak Effective % . | . . . Robots Rewired . | . . . Allies Hacked . | . . . Hacks Repelled . | . . . Allies | -11 -10 -10 -------- Run | Yrd Mat Sub Total Allies . | . . . Largest Group . | . . . Highest-Rated Group . | . . . Highest-Rated Ally . | . . . Total Orders . | . . . Ally Attacks . | . . . Total Damage . | . . . Kills . | . . . Allies Corrupted . | . . . Allies Melted 1 | . . 1 Intel | -11 -10 -10 ------- Run | Yrd Mat Sub Robot Analysis Total . | . . . Derelict Logs Recovered 3 | . . 3 Drone Launches . | . . . Drone Recoveries . | . . . Exploration | -11 -10 -10 ------------- Run | Yrd Mat Sub Turns Passed 1515 | 309 310 896 Spaces Moved 729 | 209 151 369 Core 7 | 7 . . Treads . | . . . Legs 718 | 202 151 365 Wheels 4 | . . 4 Hover . | . . . Flight . | . . . Fastest Speed 50 | 50 120 110 Average Speed 165 | 117 120 211 Slowest Speed 260 | 120 120 260 Overloaded Moves . | . . . Propulsion Burnouts . | . . . Robots Hopped . | . . . Cave-ins Triggered . | . . . Exploration Rate (%) 16 | 6 29 13 Regions Visited 2 Branch Regions 1 Pre-discovered Areas . | . . . Known Exits Taken . | . . . Unknown Exits Taken 2 | 1 1 . Scrap Searched . | . . . Spaces Dug . | . . . Terrain Destroyed 6 | 2 4 . Melee . | . . . Projectile . | . . . AOE 6 | 2 4 . Terrain Rammed . | . . . Walls Destroyed . | . . . Machines Disabled . | . . . Actions | -11 -10 -10 --------- Run | Yrd Mat Sub Total 897 | 241 208 448 Wait 22 | . 10 12 Move 727 | 208 150 369 Hop . | . . . Pick Up 22 | 8 4 10 Fast Attach 10 | 5 . 5 Attach 13 | 3 1 9 Detach 3 | 1 1 1 Swap 5 | . 4 1 Drop 16 | 1 3 12 Fire 68 | 15 34 19 Melee . | . . . Ram . | . . . Kick 9 | . 1 8 Crush . | . . . Escape Stasis . | . . . Rewire . | . . . Trap . | . . . Miscellaneous 2 | . . 2 Route ------- -11/Scrapyard -10/Materials -10/Subcaves History --------- Turn | Location | Event 6 | -11/Scrapyard | Discovered new exit (range 16) 310 | -11/Scrapyard | Entered Materials 311 | -10/Materials | Build established: Mutant 552 | -10/Materials | Discovered new exit (range 8) 620 | -10/Materials | Entered Subcaves 621 | -10/Subcaves | Ambushed by Subdwellers from Twisted Machinery 676 | -10/Subcaves | A swath of the cavern ceiling suddenly collapsed 677 | -10/Subcaves | Learned Materials emergency access door positions 694 | -10/Subcaves | Learned Materials stockpile data 791 | -10/Subcaves | Ambushed by swarm of Subdwellers 835 | -10/Subcaves | Core integrity fell below 50% 857 | -10/Subcaves | Lost 4 allies 1078 | -10/Subcaves | Build established: Scavenger-Mutant 1196 | -10/Subcaves | Learned Materials security intel 1470 | -10/Subcaves | A Subdweller sparked back to life 1470 | -10/Subcaves | A Subdweller sparked back to life 1470 | -10/Subcaves | A Subdweller sparked back to life 1508 | -10/Subcaves | Core integrity fell below 20% 1516 | -10/Subcaves | Core destroyed Last Messages --------------- OH-DRZ(R) affixes Scrap Shield Fragment to Scrap Shield. Kicked 9S-N4X(R). 9S-N4X(R) knocked back. Kicked 9S-N4X(R). Kicked 9S-N4X(R) out of the way. OH-DRZ(R) affixes Scrap Shield Fragment to Scrap Shield. Kicked 9S-N4X(R). Kicked 9S-N4X(R) out of the way. Aluminum Leg destroyed. Neutrino Core destroyed. Kicked OH-DRZ(R) out of the way. Kicked OH-DRZ(R). OH-DRZ(R) destroyed. Acquired 5 matter. Acquired 3 matter. Acquired 5 matter. Slammed into 9S-N4X(R). Destabilizing: Core damaged (-10). Map ----- +----------------------------------------------------+ | | | | | | | | | ?????????????????????????????????????????????????? | | ?????????????????????????????????????????????????? | | ?????????????????????????????????????????????????? | | ?????????????????????????????????????????????????? | | ?????????????????????????????????????????????????? | | ?????????????????????????????????????????????????? | | ?????????????????????????????????????????????????? | | ?????????????????????????????????????????????????? | | ?????????????????????????????????????????????????? | | ?????????????????????????????????????????????????? | | ?????????????????????????????????????????????????? | | ?????????????????????????????????????????????????? | | ?????????????????????????????????????????????????? | | ?????????????????????????????????????????????????? | | ???????????????####???????????????#??????????????? | | ???????????????# #######???????????????????# ??? | | ???????????????# ## ##?????????????????? "? | | ????????????????# ##?????????????????? " | | ???????????????## ##????????????????? "" | | ???????????????# ####?????????????? """" | | ???????????????# ##??##?????###?#"""" | | ???????????????# #### R@ = ### #?????#"###"""" | | ???????????????###?## %%*% !! ####??## "#"""" | | ??????????????????## #< !! % ## #### """"" | | ?????????????????## ## < # # ## " | | ?????????????????# ###<# ##### # # " # | | ?????????????????# #???#### " ##### | | ?????????????????# ## #####????#?# ""*" #???# | | ?????????????????##?## ###??????????#### &#???? | | ????????????????????# #### #??????# ##??? | | ????????????????????# #????#?# ##??? | | ????????????????????# #### # #?????# #??## | | ????????????????????# ###?????? ?????## #??# | | ????????????????????## ##????????????## #??# | | ?????????????????????## #?????????????# ###?## | | ?????????????????##???# ####?????????#?# ##???? | | ?????????????????# #??## "#???????????# ##???? | | ?????????????????# #### "###???????#??## ##?#? | | ?????????????????# ##"#"##???? ?????## ##?? | | ?????????????????# ##""#?????????##" #?? | | ?????????????????# ""#""#??????? #""# #?? | | ?????????????????# """"#"#??? #""#"## #?? | | ?????????????????## #""#"# #""##"" # #?? | | ??????????????????##### "######## """#?## ## ### | | ??????????????????????####??????#####?? ## # | | ??????????????????????????????????##??# ## | +----------------------------------------------------+ Best States ------------- Heat Dissipation 25 Energy Generation 19 Energy Capacity 315 Matter Stores 300 Matter Capacity 300 Sight Range 16 Terrain Scan Range 16 Terrain Scan Density 10 Armor Coverage 800 Evasion (%) 55 Item Schematics ----------------- None Robot Schematics ------------------ None Fabricated ------------ Nothing Alien Tech Used ----------------- None Achievements -------------- None Challenges ------------ None Game ------ Seed LinkedMobileMatrix Manual? 0 Play Time 00:29:26 Cumulative 3.1 hours Start 2024.05.18 @ 21:35:04 End 2024.05.18 @ 22:01:53 Sessions 1 Manual Loads 0 Difficulty Rogue Special Mode None Game No. 3 Rogue 3 Adventurer 0 Explorer 0 Win Type - Total 0 Types 0/0/0/0/0/0/0/0/0 Lore% 8 Gallery% 3 Achievement% 4 Wizard Run 0 Options --------- Layout 1 ASCII 0 Keyboard 1 Movement Arrows Keybinds 0 Fullscreen 1 Font 24/Smallcaps Map View 50x35 Zoom Use 0% Tactical HUD 0 Map Filters NONE Filters NONE Steam 0 RUN: ae1fd0b9-6274-416c-a59f-f9de2a35c6cd